Workbook

Sheet Calculator
A1: Raven's Compound Interest Financial Freedom Calculator
A2: first of all, think about what is your annual salary. Because the first step of financial freedom/independence means you want to make MORE from trading/investing than your full time job. So what is the number that you want to make a year?
A4: Input | B4: Your Value | D4: Summary | E4: Result
A5: Starting investment | B5: £250 | D5: Future value | E5: =B5*(1+B7/B9)^(B8*B9)+B6*IF(B10="Beginning",(1+B7/B9),1)*(((1+B7/B9)^(B8*B9)-1)/(B7/B9)) -> £297,852,005,411
A6: Monthly contribution | B6: £0 | D6: Total contributions | E6: =B5+(B6*12*B8) -> £250
A7: Expected annual return | B7: 500.00% | D7: Total interest/growth | E7: =E5-E6 -> £297,852,005,161
A8: Years invested | B8: 5 | D8: Multiple on money | E8: =E5/E6 -> 1191408021.64x
A9: Compounding frequency per year | B9: 12 | D9: Final year passive annual growth* | E9: =E5*B7 -> £1,489,260,027,056
A10: Contributions timing | B10: End
D11: *This is a simple illustration: final value × assumed annual return. Real markets move up and down. It also depends on how willing you are to apply Raven's 8 step trading /investing strategy, taking 1 hour a week
A13: How to use this calculator
A14: 1 | B14: Change the yellow input cells only.
A15: 2
A16: 3 | B16: Use the Projection sheet to show students how compounding grows over time.
A17: 4 | B17: Use it as education and planning.
A25: With mentorshop and the right guidance, our 1to1 exclusive committed students usually make around 100-300% in 3-4 months time. ( depending on how extreme fear the market is)
A27: For examples, March 2026 => if you have invested into our powerful Financial freedom baby stocks like Micron, Applied Optoelectronics, POET, Sitime Corp, Bloom energy, Max Linear Inc, you would have made around 100%-300% in 1-2 months time.
A29: SO the conservative number I would like you to use is 200% every 3 months on our compound interest calculator.
A31: 200% every 3 months => conservatively it would be 500%-800% return a year, using my 8 step trading strategies.

Sheet Projection
A1: Compound Growth Projection
A3: Year | B3: Starting Balance | C3: Contributions | D3: Growth | E3: Ending Balance | F3: Cumulative Contributions
A4: =0 -> 0 | B4: =Calculator!$B$5 -> £250 | C4: =0 -> £0 | D4: =0 -> £0 | E4: =Calculator!$B$5 -> £250 | F4: =Calculator!$B$5 -> £250
A5: =A4+1 -> 1 | B5: =E4 -> £250 | C5: =IF(A5<=Calculator!$B$8,Calculator!$B$6*12,"") -> £0 | D5: =IF(A5<=Calculator!$B$8,E5-B5-C5,"") -> £16,086 | E5: =IF(A5<=Calculator!$B$8,B5*(1+Calculator!$B$7/Calculator!$B$9)^Calculator!$B$9+Calculator!$B$6*IF(Calculator!$B$10="Beginning",(1+Calculator!$B$7/Calculator!$B$9),1)*(((1+Calculator!$B$7/Calculator!$B$9)^Calculator!$B$9-1)/(Calculator!$B$7/Calculator!$B$9)),"") -> £16,336 | F5: =IF(A5<=Calculator!$B$8,F4+C5,"") -> £250
A6: 2 | B6: £16,336 | C6: =IF(A6<=Calculator!$B$8,Calculator!$B$6*12,"") -> £0 | D6: =IF(A6<=Calculator!$B$8,E6-B6-C6,"") -> £1,051,155 | E6: =IF(A6<=Calculator!$B$8,B6*(1+Calculator!$B$7/Calculator!$B$9)^Calculator!$B$9+Calculator!$B$6*IF(Calculator!$B$10="Beginning",(1+Calculator!$B$7/Calculator!$B$9),1)*(((1+Calculator!$B$7/Calculator!$B$9)^Calculator!$B$9-1)/(Calculator!$B$7/Calculator!$B$9)),"") -> £1,067,491 | F6: =IF(A6<=Calculator!$B$8,F5+C6,"") -> £250
A7: 3 | B7: £1,067,491 | C7: =IF(A7<=Calculator!$B$8,Calculator!$B$6*12,"") -> £0 | D7: =IF(A7<=Calculator!$B$8,E7-B7-C7,"") -> £68,687,666 | E7: =IF(A7<=Calculator!$B$8,B7*(1+Calculator!$B$7/Calculator!$B$9)^Calculator!$B$9+Calculator!$B$6*IF(Calculator!$B$10="Beginning",(1+Calculator!$B$7/Calculator!$B$9),1)*(((1+Calculator!$B$7/Calculator!$B$9)^Calculator!$B$9-1)/(Calculator!$B$7/Calculator!$B$9)),"") -> £69,755,157 | F7: =IF(A7<=Calculator!$B$8,F6+C7,"") -> £250
A8: 4 | B8: £69,755,157 | C8: =IF(A8<=Calculator!$B$8,Calculator!$B$6*12,"") -> £0 | D8: =IF(A8<=Calculator!$B$8,E8-B8-C8,"") -> £4,488,392,866 | E8: =IF(A8<=Calculator!$B$8,B8*(1+Calculator!$B$7/Calculator!$B$9)^Calculator!$B$9+Calculator!$B$6*IF(Calculator!$B$10="Beginning",(1+Calculator!$B$7/Calculator!$B$9),1)*(((1+Calculator!$B$7/Calculator!$B$9)^Calculator!$B$9-1)/(Calculator!$B$7/Calculator!$B$9)),"") -> £4,558,148,023 | F8: =IF(A8<=Calculator!$B$8,F7+C8,"") -> £250
A9: 5 | B9: £4,558,148,023 | C9: =IF(A9<=Calculator!$B$8,Calculator!$B$6*12,"") -> £0 | D9: =IF(A9<=Calculator!$B$8,E9-B9-C9,"") -> £293,293,857,388 | E9: =IF(A9<=Calculator!$B$8,B9*(1+Calculator!$B$7/Calculator!$B$9)^Calculator!$B$9+Calculator!$B$6*IF(Calculator!$B$10="Beginning",(1+Calculator!$B$7/Calculator!$B$9),1)*(((1+Calculator!$B$7/Calculator!$B$9)^Calculator!$B$9-1)/(Calculator!$B$7/Calculator!$B$9)),"") -> £297,852,005,411 | F9: =IF(A9<=Calculator!$B$8,F8+C9,"") -> £250
A10: 6 | B10: £297,852,005,411 | C10: =IF(A10<=Calculator!$B$8,Calculator!$B$6*12,"") ->  | D10: =IF(A10<=Calculator!$B$8,E10-B10-C10,"") ->  | E10: =IF(A10<=Calculator!$B$8,B10*(1+Calculator!$B$7/Calculator!$B$9)^Calculator!$B$9+Calculator!$B$6*IF(Calculator!$B$10="Beginning",(1+Calculator!$B$7/Calculator!$B$9),1)*(((1+Calculator!$B$7/Calculator!$B$9)^Calculator!$B$9-1)/(Calculator!$B$7/Calculator!$B$9)),"") ->  | F10: =IF(A10<=Calculator!$B$8,F9+C10,"") -> 
A11: 7 | C11: =IF(A11<=Calculator!$B$8,Calculator!$B$6*12,"") ->  | D11: =IF(A11<=Calculator!$B$8,E11-B11-C11,"") ->  | E11: =IF(A11<=Calculator!$B$8,B11*(1+Calculator!$B$7/Calculator!$B$9)^Calculator!$B$9+Calculator!$B$6*IF(Calculator!$B$10="Beginning",(1+Calculator!$B$7/Calculator!$B$9),1)*(((1+Calculator!$B$7/Calculator!$B$9)^Calculator!$B$9-1)/(Calculator!$B$7/Calculator!$B$9)),"") ->  | F11: =IF(A11<=Calculator!$B$8,F10+C11,"") -> 
A12: 8 | C12: =IF(A12<=Calculator!$B$8,Calculator!$B$6*12,"") ->  | D12: =IF(A12<=Calculator!$B$8,E12-B12-C12,"") ->  | E12: =IF(A12<=Calculator!$B$8,B12*(1+Calculator!$B$7/Calculator!$B$9)^Calculator!$B$9+Calculator!$B$6*IF(Calculator!$B$10="Beginning",(1+Calculator!$B$7/Calculator!$B$9),1)*(((1+Calculator!$B$7/Calculator!$B$9)^Calculator!$B$9-1)/(Calculator!$B$7/Calculator!$B$9)),"") ->  | F12: =IF(A12<=Calculator!$B$8,F11+C12,"") -> 
A13: 9 | C13: =IF(A13<=Calculator!$B$8,Calculator!$B$6*12,"") ->  | D13: =IF(A13<=Calculator!$B$8,E13-B13-C13,"") ->  | E13: =IF(A13<=Calculator!$B$8,B13*(1+Calculator!$B$7/Calculator!$B$9)^Calculator!$B$9+Calculator!$B$6*IF(Calculator!$B$10="Beginning",(1+Calculator!$B$7/Calculator!$B$9),1)*(((1+Calculator!$B$7/Calculator!$B$9)^Calculator!$B$9-1)/(Calculator!$B$7/Calculator!$B$9)),"") ->  | F13: =IF(A13<=Calculator!$B$8,F12+C13,"") -> 
A14: 10 | C14: =IF(A14<=Calculator!$B$8,Calculator!$B$6*12,"") ->  | D14: =IF(A14<=Calculator!$B$8,E14-B14-C14,"") ->  | E14: =IF(A14<=Calculator!$B$8,B14*(1+Calculator!$B$7/Calculator!$B$9)^Calculator!$B$9+Calculator!$B$6*IF(Calculator!$B$10="Beginning",(1+Calculator!$B$7/Calculator!$B$9),1)*(((1+Calculator!$B$7/Calculator!$B$9)^Calculator!$B$9-1)/(Calculator!$B$7/Calculator!$B$9)),"") ->  | F14: =IF(A14<=Calculator!$B$8,F13+C14,"") -> 
A15: 11 | C15: =IF(A15<=Calculator!$B$8,Calculator!$B$6*12,"") ->  | D15: =IF(A15<=Calculator!$B$8,E15-B15-C15,"") ->  | E15: =IF(A15<=Calculator!$B$8,B15*(1+Calculator!$B$7/Calculator!$B$9)^Calculator!$B$9+Calculator!$B$6*IF(Calculator!$B$10="Beginning",(1+Calculator!$B$7/Calculator!$B$9),1)*(((1+Calculator!$B$7/Calculator!$B$9)^Calculator!$B$9-1)/(Calculator!$B$7/Calculator!$B$9)),"") ->  | F15: =IF(A15<=Calculator!$B$8,F14+C15,"") -> 
A16: 12 | C16: =IF(A16<=Calculator!$B$8,Calculator!$B$6*12,"") ->  | D16: =IF(A16<=Calculator!$B$8,E16-B16-C16,"") ->  | E16: =IF(A16<=Calculator!$B$8,B16*(1+Calculator!$B$7/Calculator!$B$9)^Calculator!$B$9+Calculator!$B$6*IF(Calculator!$B$10="Beginning",(1+Calculator!$B$7/Calculator!$B$9),1)*(((1+Calculator!$B$7/Calculator!$B$9)^Calculator!$B$9-1)/(Calculator!$B$7/Calculator!$B$9)),"") ->  | F16: =IF(A16<=Calculator!$B$8,F15+C16,"") -> 
A17: 13 | D17: =IF(A17<=Calculator!$B$8,E17-B17-C17,"") ->  | E17: =IF(A17<=Calculator!$B$8,B17*(1+Calculator!$B$7/Calculator!$B$9)^Calculator!$B$9+Calculator!$B$6*IF(Calculator!$B$10="Beginning",(1+Calculator!$B$7/Calculator!$B$9),1)*(((1+Calculator!$B$7/Calculator!$B$9)^Calculator!$B$9-1)/(Calculator!$B$7/Calculator!$B$9)),"") ->  | F17: =IF(A17<=Calculator!$B$8,F16+C17,"") -> 
A18: 14 | C18: =IF(A18<=Calculator!$B$8,Calculator!$B$6*12,"") ->  | D18: =IF(A18<=Calculator!$B$8,E18-B18-C18,"") ->  | E18: =IF(A18<=Calculator!$B$8,B18*(1+Calculator!$B$7/Calculator!$B$9)^Calculator!$B$9+Calculator!$B$6*IF(Calculator!$B$10="Beginning",(1+Calculator!$B$7/Calculator!$B$9),1)*(((1+Calculator!$B$7/Calculator!$B$9)^Calculator!$B$9-1)/(Calculator!$B$7/Calculator!$B$9)),"") ->  | F18: =IF(A18<=Calculator!$B$8,F17+C18,"") -> 
A19: 15 | E19: =IF(A19<=Calculator!$B$8,B19*(1+Calculator!$B$7/Calculator!$B$9)^Calculator!$B$9+Calculator!$B$6*IF(Calculator!$B$10="Beginning",(1+Calculator!$B$7/Calculator!$B$9),1)*(((1+Calculator!$B$7/Calculator!$B$9)^Calculator!$B$9-1)/(Calculator!$B$7/Calculator!$B$9)),"") ->  | F19: =IF(A19<=Calculator!$B$8,F18+C19,"") -> 
A20: 16 | C20: =IF(A20<=Calculator!$B$8,Calculator!$B$6*12,"") ->  | D20: =IF(A20<=Calculator!$B$8,E20-B20-C20,"") ->  | E20: =IF(A20<=Calculator!$B$8,B20*(1+Calculator!$B$7/Calculator!$B$9)^Calculator!$B$9+Calculator!$B$6*IF(Calculator!$B$10="Beginning",(1+Calculator!$B$7/Calculator!$B$9),1)*(((1+Calculator!$B$7/Calculator!$B$9)^Calculator!$B$9-1)/(Calculator!$B$7/Calculator!$B$9)),"") ->  | F20: =IF(A20<=Calculator!$B$8,F19+C20,"") -> 
A21: 17 | C21: =IF(A21<=Calculator!$B$8,Calculator!$B$6*12,"") ->  | D21: =IF(A21<=Calculator!$B$8,E21-B21-C21,"") ->  | E21: =IF(A21<=Calculator!$B$8,B21*(1+Calculator!$B$7/Calculator!$B$9)^Calculator!$B$9+Calculator!$B$6*IF(Calculator!$B$10="Beginning",(1+Calculator!$B$7/Calculator!$B$9),1)*(((1+Calculator!$B$7/Calculator!$B$9)^Calculator!$B$9-1)/(Calculator!$B$7/Calculator!$B$9)),"") ->  | F21: =IF(A21<=Calculator!$B$8,F20+C21,"") -> 
A22: 18 | C22: =IF(A22<=Calculator!$B$8,Calculator!$B$6*12,"") ->  | D22: =IF(A22<=Calculator!$B$8,E22-B22-C22,"") ->  | E22: =IF(A22<=Calculator!$B$8,B22*(1+Calculator!$B$7/Calculator!$B$9)^Calculator!$B$9+Calculator!$B$6*IF(Calculator!$B$10="Beginning",(1+Calculator!$B$7/Calculator!$B$9),1)*(((1+Calculator!$B$7/Calculator!$B$9)^Calculator!$B$9-1)/(Calculator!$B$7/Calculator!$B$9)),"") ->  | F22: =IF(A22<=Calculator!$B$8,F21+C22,"") -> 
A23: 19 | C23: =IF(A23<=Calculator!$B$8,Calculator!$B$6*12,"") ->  | D23: =IF(A23<=Calculator!$B$8,E23-B23-C23,"") ->  | E23: =IF(A23<=Calculator!$B$8,B23*(1+Calculator!$B$7/Calculator!$B$9)^Calculator!$B$9+Calculator!$B$6*IF(Calculator!$B$10="Beginning",(1+Calculator!$B$7/Calculator!$B$9),1)*(((1+Calculator!$B$7/Calculator!$B$9)^Calculator!$B$9-1)/(Calculator!$B$7/Calculator!$B$9)),"") ->  | F23: =IF(A23<=Calculator!$B$8,F22+C23,"") -> 
A24: 20 | C24: =IF(A24<=Calculator!$B$8,Calculator!$B$6*12,"") ->  | D24: =IF(A24<=Calculator!$B$8,E24-B24-C24,"") ->  | E24: =IF(A24<=Calculator!$B$8,B24*(1+Calculator!$B$7/Calculator!$B$9)^Calculator!$B$9+Calculator!$B$6*IF(Calculator!$B$10="Beginning",(1+Calculator!$B$7/Calculator!$B$9),1)*(((1+Calculator!$B$7/Calculator!$B$9)^Calculator!$B$9-1)/(Calculator!$B$7/Calculator!$B$9)),"") ->  | F24: =IF(A24<=Calculator!$B$8,F23+C24,"") -> 
A25: 21 | C25: =IF(A25<=Calculator!$B$8,Calculator!$B$6*12,"") ->  | D25: =IF(A25<=Calculator!$B$8,E25-B25-C25,"") ->  | E25: =IF(A25<=Calculator!$B$8,B25*(1+Calculator!$B$7/Calculator!$B$9)^Calculator!$B$9+Calculator!$B$6*IF(Calculator!$B$10="Beginning",(1+Calculator!$B$7/Calculator!$B$9),1)*(((1+Calculator!$B$7/Calculator!$B$9)^Calculator!$B$9-1)/(Calculator!$B$7/Calculator!$B$9)),"") ->  | F25: =IF(A25<=Calculator!$B$8,F24+C25,"") ->  | G25: What is your financial freedom number? If it's between £50k a year tax free to £200k a year tax free
A26: 22 | C26: =IF(A26<=Calculator!$B$8,Calculator!$B$6*12,"") ->  | D26: =IF(A26<=Calculator!$B$8,E26-B26-C26,"") ->  | E26: =IF(A26<=Calculator!$B$8,B26*(1+Calculator!$B$7/Calculator!$B$9)^Calculator!$B$9+Calculator!$B$6*IF(Calculator!$B$10="Beginning",(1+Calculator!$B$7/Calculator!$B$9),1)*(((1+Calculator!$B$7/Calculator!$B$9)^Calculator!$B$9-1)/(Calculator!$B$7/Calculator!$B$9)),"") ->  | F26: =IF(A26<=Calculator!$B$8,F25+C26,"") ->  | G26: most of our 1to1 students, given that you are committed and disciplined ( automatically buy during extreme fear)
A27: 23 | C27: =IF(A27<=Calculator!$B$8,Calculator!$B$6*12,"") ->  | D27: =IF(A27<=Calculator!$B$8,E27-B27-C27,"") ->  | E27: =IF(A27<=Calculator!$B$8,B27*(1+Calculator!$B$7/Calculator!$B$9)^Calculator!$B$9+Calculator!$B$6*IF(Calculator!$B$10="Beginning",(1+Calculator!$B$7/Calculator!$B$9),1)*(((1+Calculator!$B$7/Calculator!$B$9)^Calculator!$B$9-1)/(Calculator!$B$7/Calculator!$B$9)),"") ->  | F27: =IF(A27<=Calculator!$B$8,F26+C27,"") ->  | G27: many will make more money than their full time job in months if not 1-2 years.
A28: 24 | C28: =IF(A28<=Calculator!$B$8,Calculator!$B$6*12,"") ->  | D28: =IF(A28<=Calculator!$B$8,E28-B28-C28,"") ->  | E28: =IF(A28<=Calculator!$B$8,B28*(1+Calculator!$B$7/Calculator!$B$9)^Calculator!$B$9+Calculator!$B$6*IF(Calculator!$B$10="Beginning",(1+Calculator!$B$7/Calculator!$B$9),1)*(((1+Calculator!$B$7/Calculator!$B$9)^Calculator!$B$9-1)/(Calculator!$B$7/Calculator!$B$9)),"") ->  | F28: =IF(A28<=Calculator!$B$8,F27+C28,"") -> 
A29: 25 | C29: =IF(A29<=Calculator!$B$8,Calculator!$B$6*12,"") ->  | D29: =IF(A29<=Calculator!$B$8,E29-B29-C29,"") ->  | E29: =IF(A29<=Calculator!$B$8,B29*(1+Calculator!$B$7/Calculator!$B$9)^Calculator!$B$9+Calculator!$B$6*IF(Calculator!$B$10="Beginning",(1+Calculator!$B$7/Calculator!$B$9),1)*(((1+Calculator!$B$7/Calculator!$B$9)^Calculator!$B$9-1)/(Calculator!$B$7/Calculator!$B$9)),"") ->  | F29: =IF(A29<=Calculator!$B$8,F28+C29,"") -> 
A30: 26 | C30: =IF(A30<=Calculator!$B$8,Calculator!$B$6*12,"") ->  | D30: =IF(A30<=Calculator!$B$8,E30-B30-C30,"") ->  | E30: =IF(A30<=Calculator!$B$8,B30*(1+Calculator!$B$7/Calculator!$B$9)^Calculator!$B$9+Calculator!$B$6*IF(Calculator!$B$10="Beginning",(1+Calculator!$B$7/Calculator!$B$9),1)*(((1+Calculator!$B$7/Calculator!$B$9)^Calculator!$B$9-1)/(Calculator!$B$7/Calculator!$B$9)),"") ->  | F30: =IF(A30<=Calculator!$B$8,F29+C30,"") -> 
A31: 27 | C31: =IF(A31<=Calculator!$B$8,Calculator!$B$6*12,"") ->  | D31: =IF(A31<=Calculator!$B$8,E31-B31-C31,"") ->  | E31: =IF(A31<=Calculator!$B$8,B31*(1+Calculator!$B$7/Calculator!$B$9)^Calculator!$B$9+Calculator!$B$6*IF(Calculator!$B$10="Beginning",(1+Calculator!$B$7/Calculator!$B$9),1)*(((1+Calculator!$B$7/Calculator!$B$9)^Calculator!$B$9-1)/(Calculator!$B$7/Calculator!$B$9)),"") ->  | F31: =IF(A31<=Calculator!$B$8,F30+C31,"") -> 
A32: 28 | C32: =IF(A32<=Calculator!$B$8,Calculator!$B$6*12,"") ->  | D32: =IF(A32<=Calculator!$B$8,E32-B32-C32,"") ->  | E32: =IF(A32<=Calculator!$B$8,B32*(1+Calculator!$B$7/Calculator!$B$9)^Calculator!$B$9+Calculator!$B$6*IF(Calculator!$B$10="Beginning",(1+Calculator!$B$7/Calculator!$B$9),1)*(((1+Calculator!$B$7/Calculator!$B$9)^Calculator!$B$9-1)/(Calculator!$B$7/Calculator!$B$9)),"") ->  | F32: =IF(A32<=Calculator!$B$8,F31+C32,"") -> 
A33: 29 | C33: =IF(A33<=Calculator!$B$8,Calculator!$B$6*12,"") ->  | D33: =IF(A33<=Calculator!$B$8,E33-B33-C33,"") ->  | E33: =IF(A33<=Calculator!$B$8,B33*(1+Calculator!$B$7/Calculator!$B$9)^Calculator!$B$9+Calculator!$B$6*IF(Calculator!$B$10="Beginning",(1+Calculator!$B$7/Calculator!$B$9),1)*(((1+Calculator!$B$7/Calculator!$B$9)^Calculator!$B$9-1)/(Calculator!$B$7/Calculator!$B$9)),"") ->  | F33: =IF(A33<=Calculator!$B$8,F32+C33,"") -> 
A34: 30 | C34: =IF(A34<=Calculator!$B$8,Calculator!$B$6*12,"") ->  | D34: =IF(A34<=Calculator!$B$8,E34-B34-C34,"") ->  | E34: =IF(A34<=Calculator!$B$8,B34*(1+Calculator!$B$7/Calculator!$B$9)^Calculator!$B$9+Calculator!$B$6*IF(Calculator!$B$10="Beginning",(1+Calculator!$B$7/Calculator!$B$9),1)*(((1+Calculator!$B$7/Calculator!$B$9)^Calculator!$B$9-1)/(Calculator!$B$7/Calculator!$B$9)),"") ->  | F34: =IF(A34<=Calculator!$B$8,F33+C34,"") -> 
A35: 31 | C35: =IF(A35<=Calculator!$B$8,Calculator!$B$6*12,"") ->  | D35: =IF(A35<=Calculator!$B$8,E35-B35-C35,"") ->  | E35: =IF(A35<=Calculator!$B$8,B35*(1+Calculator!$B$7/Calculator!$B$9)^Calculator!$B$9+Calculator!$B$6*IF(Calculator!$B$10="Beginning",(1+Calculator!$B$7/Calculator!$B$9),1)*(((1+Calculator!$B$7/Calculator!$B$9)^Calculator!$B$9-1)/(Calculator!$B$7/Calculator!$B$9)),"") ->  | F35: =IF(A35<=Calculator!$B$8,F34+C35,"") -> 
A36: 32 | C36: =IF(A36<=Calculator!$B$8,Calculator!$B$6*12,"") ->  | D36: =IF(A36<=Calculator!$B$8,E36-B36-C36,"") ->  | E36: =IF(A36<=Calculator!$B$8,B36*(1+Calculator!$B$7/Calculator!$B$9)^Calculator!$B$9+Calculator!$B$6*IF(Calculator!$B$10="Beginning",(1+Calculator!$B$7/Calculator!$B$9),1)*(((1+Calculator!$B$7/Calculator!$B$9)^Calculator!$B$9-1)/(Calculator!$B$7/Calculator!$B$9)),"") ->  | F36: =IF(A36<=Calculator!$B$8,F35+C36,"") -> 
A37: 33 | C37: =IF(A37<=Calculator!$B$8,Calculator!$B$6*12,"") ->  | D37: =IF(A37<=Calculator!$B$8,E37-B37-C37,"") ->  | E37: =IF(A37<=Calculator!$B$8,B37*(1+Calculator!$B$7/Calculator!$B$9)^Calculator!$B$9+Calculator!$B$6*IF(Calculator!$B$10="Beginning",(1+Calculator!$B$7/Calculator!$B$9),1)*(((1+Calculator!$B$7/Calculator!$B$9)^Calculator!$B$9-1)/(Calculator!$B$7/Calculator!$B$9)),"") ->  | F37: =IF(A37<=Calculator!$B$8,F36+C37,"") -> 
A38: 34 | C38: =IF(A38<=Calculator!$B$8,Calculator!$B$6*12,"") ->  | D38: =IF(A38<=Calculator!$B$8,E38-B38-C38,"") ->  | E38: =IF(A38<=Calculator!$B$8,B38*(1+Calculator!$B$7/Calculator!$B$9)^Calculator!$B$9+Calculator!$B$6*IF(Calculator!$B$10="Beginning",(1+Calculator!$B$7/Calculator!$B$9),1)*(((1+Calculator!$B$7/Calculator!$B$9)^Calculator!$B$9-1)/(Calculator!$B$7/Calculator!$B$9)),"") ->  | F38: =IF(A38<=Calculator!$B$8,F37+C38,"") -> 
A39: 35 | C39: =IF(A39<=Calculator!$B$8,Calculator!$B$6*12,"") ->  | D39: =IF(A39<=Calculator!$B$8,E39-B39-C39,"") ->  | E39: =IF(A39<=Calculator!$B$8,B39*(1+Calculator!$B$7/Calculator!$B$9)^Calculator!$B$9+Calculator!$B$6*IF(Calculator!$B$10="Beginning",(1+Calculator!$B$7/Calculator!$B$9),1)*(((1+Calculator!$B$7/Calculator!$B$9)^Calculator!$B$9-1)/(Calculator!$B$7/Calculator!$B$9)),"") ->  | F39: =IF(A39<=Calculator!$B$8,F38+C39,"") -> 
A40: 36 | C40: =IF(A40<=Calculator!$B$8,Calculator!$B$6*12,"") ->  | D40: =IF(A40<=Calculator!$B$8,E40-B40-C40,"") ->  | E40: =IF(A40<=Calculator!$B$8,B40*(1+Calculator!$B$7/Calculator!$B$9)^Calculator!$B$9+Calculator!$B$6*IF(Calculator!$B$10="Beginning",(1+Calculator!$B$7/Calculator!$B$9),1)*(((1+Calculator!$B$7/Calculator!$B$9)^Calculator!$B$9-1)/(Calculator!$B$7/Calculator!$B$9)),"") ->  | F40: =IF(A40<=Calculator!$B$8,F39+C40,"") -> 
A41: 37 | C41: =IF(A41<=Calculator!$B$8,Calculator!$B$6*12,"") ->  | D41: =IF(A41<=Calculator!$B$8,E41-B41-C41,"") ->  | E41: =IF(A41<=Calculator!$B$8,B41*(1+Calculator!$B$7/Calculator!$B$9)^Calculator!$B$9+Calculator!$B$6*IF(Calculator!$B$10="Beginning",(1+Calculator!$B$7/Calculator!$B$9),1)*(((1+Calculator!$B$7/Calculator!$B$9)^Calculator!$B$9-1)/(Calculator!$B$7/Calculator!$B$9)),"") ->  | F41: =IF(A41<=Calculator!$B$8,F40+C41,"") -> 
A42: 38 | C42: =IF(A42<=Calculator!$B$8,Calculator!$B$6*12,"") ->  | D42: =IF(A42<=Calculator!$B$8,E42-B42-C42,"") ->  | E42: =IF(A42<=Calculator!$B$8,B42*(1+Calculator!$B$7/Calculator!$B$9)^Calculator!$B$9+Calculator!$B$6*IF(Calculator!$B$10="Beginning",(1+Calculator!$B$7/Calculator!$B$9),1)*(((1+Calculator!$B$7/Calculator!$B$9)^Calculator!$B$9-1)/(Calculator!$B$7/Calculator!$B$9)),"") ->  | F42: =IF(A42<=Calculator!$B$8,F41+C42,"") -> 
A43: 39 | C43: =IF(A43<=Calculator!$B$8,Calculator!$B$6*12,"") ->  | D43: =IF(A43<=Calculator!$B$8,E43-B43-C43,"") ->  | E43: =IF(A43<=Calculator!$B$8,B43*(1+Calculator!$B$7/Calculator!$B$9)^Calculator!$B$9+Calculator!$B$6*IF(Calculator!$B$10="Beginning",(1+Calculator!$B$7/Calculator!$B$9),1)*(((1+Calculator!$B$7/Calculator!$B$9)^Calculator!$B$9-1)/(Calculator!$B$7/Calculator!$B$9)),"") ->  | F43: =IF(A43<=Calculator!$B$8,F42+C43,"") -> 
A44: 40 | C44: =IF(A44<=Calculator!$B$8,Calculator!$B$6*12,"") ->  | D44: =IF(A44<=Calculator!$B$8,E44-B44-C44,"") ->  | E44: =IF(A44<=Calculator!$B$8,B44*(1+Calculator!$B$7/Calculator!$B$9)^Calculator!$B$9+Calculator!$B$6*IF(Calculator!$B$10="Beginning",(1+Calculator!$B$7/Calculator!$B$9),1)*(((1+Calculator!$B$7/Calculator!$B$9)^Calculator!$B$9-1)/(Calculator!$B$7/Calculator!$B$9)),"") ->  | F44: =IF(A44<=Calculator!$B$8,F43+C44,"") -> 

Sheet Scenarios
A1: Scenario Comparison
A3: Scenario | B3: Starting Investment | C3: Monthly Contribution | D3: Annual Return | E3: Years | F3: Future Value | G3: Total Interest/Growth
A4: Conservative | B4: =Calculator!B5 -> £250 | C4: =Calculator!B6 -> £0 | D4: 100.00% | E4: =Calculator!B8 -> 5 | F4: =B4*(1+D4/12)^(E4*12)+C4*(((1+D4/12)^(E4*12)-1)/(D4/12)) -> £30,456 | G4: =F4-(B4+C4*12*E4) -> £30,206
A5: Balanced | B5: =Calculator!B5 -> £250 | C5: =Calculator!B6 -> £0 | D5: 150.00% | E5: =Calculator!B8 -> 5 | F5: =B5*(1+D5/12)^(E5*12)+C5*(((1+D5/12)^(E5*12)-1)/(D5/12)) -> £293,151 | G5: =F5-(B5+C5*12*E5) -> £292,901
A6: Growth | B6: =Calculator!B5 -> £250 | C6: =Calculator!B6 -> £0 | D6: 200.00% | E6: =Calculator!B8 -> 5 | F6: =B6*(1+D6/12)^(E6*12)+C6*(((1+D6/12)^(E6*12)-1)/(D6/12)) -> £2,598,648 | G6: =F6-(B6+C6*12*E6) -> £2,598,398
A7: High Growth | B7: =Calculator!B5 -> £250 | C7: =Calculator!B6 -> £0 | D7: 500.00% | E7: =Calculator!B8 -> 5 | F7: =B7*(1+D7/12)^(E7*12)+C7*(((1+D7/12)^(E7*12)-1)/(D7/12)) -> £297,852,005,411 | G7: =F7-(B7+C7*12*E7) -> £297,852,005,161
